bitfinex-derivatives/quotes_SOLF0:USTF0_20250720
["timestamp","ask_amount","ask_price","bid_price","bid_amount"]
[1753053007170,5.5524,180.01,179.98,2.99]
[1753053007372,3.0,180.04,179.96,2.99]
[1753053008772,3.0,180.04,179.97,2.99]
[1753053009171,5.5526,180.0,179.97,2.99]
[1753053009374,3.0,180.04,179.98,2.99]
[1753053009570,3.0,180.13,180.04,2.99]
[1753053009773,5.5501,180.08,180.05,3.47671506]
[1753053009968,3.0,180.13,180.07,2.99]
[1753053010274,5.5499,180.09,180.07,2.99]
[1753053010472,3.0,180.12,180.06,2.99]
[1753053011468,3.47671506,180.15,180.07,2.99]
[1753053011665,3.0,180.1,180.07,2.99]
[1753053012075,5.5498,180.09,180.07,2.99]
[1753053012678,3.0,180.1,180.07,2.99]
[1753053012873,5.5498,180.09,180.07,2.99]
[1753053013174,3.0,180.1,180.07,2.99]
[1753053013974,5.5498,180.09,180.05,2.99]
[1753053014476,5.5502,180.08,180.05,2.99]
[1753053014671,3.0,180.1,180.07,2.99]
[1753053014874,3.0,180.13,180.06,2.99]
[1753053015769,3.0,180.13,180.07,2.99]
[1753053017376,8.55,180.09,180.07,2.99]
[1753053017575,3.47671506,180.16,180.05,3.47671506]
[1753053017576,3.0,180.12,180.06,2.99]
[1753053018076,5.5497,180.1,180.06,2.99]
[1753053018279,5.5497,180.1,180.05,9.02751506]
[1753053018476,5.5501,180.08,180.05,3.47671506]
[1753053018674,3.47671506,180.16,180.05,3.47671506]
[1753053018675,3.0,180.13,180.07,2.99]
[1753053019677,5.5512,180.05,180.02,2.99]
[1753053019882,5.5512,180.05,180.03,2.99]
[1753053020073,5.5512,180.05,180.01,9.02881506]
[1753053020275,5.5512,180.05,180.04,2.99]
[1753053020681,5.5518,180.03,180.02,2.99]
[1753053020877,3.0,180.07,179.99,3.47671506]
[1753053021176,3.0,180.09,180.06,2.99]
[1753053021372,5.5506,180.07,180.06,2.99]
[1753053021883,3.0,180.09,180.07,2.99]
[1753053022081,3.0,180.09,180.02,2.99]
[1753053022277,3.47671506,180.09,180.02,2.99]
[1753053022472,5.5513,180.05,180.02,2.99]
[1753053022676,5.5513,180.05,180.03,2.99]
[1753053022881,3.0,180.08,180.03,2.99]
[1753053023883,3.0,180.08,179.99,2.99]
[1753053024383,3.0,180.02,180.0,2.99]
[1753053024578,3.0,180.02,179.97,2.99]
[1753053024579,3.0,180.01,179.97,2.99]
[1753053024780,3.47671506,180.05,179.93,2.99]
[1753053024984,5.5523,180.01,179.96,2.99]
[1753053025788,5.5523,180.01,179.98,2.99]
[1753053026177,5.5526,180.0,179.98,2.99]
[1753053026686,5.5523,180.01,179.98,2.99]
[1753053026885,3.0,180.04,180.01,2.99]
[1753053027079,3.0,180.06,180.04,2.99]
[1753053027285,5.551,180.05,180.04,2.99]
[1753053027888,5.5519,180.03,180.0,2.99]
[1753053028190,3.16,180.08,180.0,2.99]
[1753053028489,3.16,180.08,179.98,3.47671506]
[1753053028490,3.16,180.08,179.99,3.07]
[1753053028785,3.16,180.08,180.01,5.552]
[1753053028982,3.16,180.08,180.02,3.07]
[1753053029384,5.5501,180.08,180.04,3.47671506]
[1753053029583,3.16,180.12,180.05,3.07]
[1753053029993,5.5503,180.08,180.05,8.6209]
[1753053030191,3.16,180.12,180.07,3.07]
[1753053030384,3.16,180.12,180.08,3.07]
[1753053030583,5.5492,180.11,180.09,3.07]
[1753053030783,5.5492,180.11,180.1,3.07]
[1753053031283,143.60815088,180.14,180.11,3.07]
[1753053031488,3.16,180.17,180.11,3.07]
[1753053031688,5.5485,180.13,180.11,3.07]
[1753053031889,5.5485,180.13,180.12,3.07]
[1753053032090,3.16,180.19,180.11,3.07]
[1753053032290,3.16,180.16,180.1,3.47671506]
[1753053032685,3.16,180.16,180.11,3.07]
[1753053032892,5.5486,180.13,180.12,3.07]
[1753053033493,5.5483,180.14,180.11,5.5491]
[1753053033692,5.5483,180.14,180.13,3.07]
[1753053035989,5.5479,180.16,180.12,5.5488]
[1753053036189,3.16,180.17,180.14,3.07]
[1753053036684,3.16,180.16,180.14,3.07]
[1753053036885,3.16,180.19,180.14,3.07]
[1753053037093,3.16,180.18,180.15,3.07]
[1753053037290,3.16,180.19,180.16,3.07]
[1753053037492,3.47671506,180.22,180.15,3.07]
[1753053037493,6.63671506,180.22,180.15,3.07]
[1753053037793,3.16,180.21,180.15,3.07]
[1753053039498,3.16,180.24,180.18,3.07]
[1753053040689,3.16,180.24,180.19,3.07]
[1753053040991,3.16,180.25,180.18,3.07]
[1753053041193,5.5452,180.24,180.2,5.5462]
[1753053041498,3.16,180.25,180.21,3.07]
[1753053041794,3.16,180.25,180.2,5.5463]
[1753053041992,3.16,180.25,180.23,3.07]
[1753053042189,5.5457,180.23,180.19,5.5466]
[1753053042396,3.16,180.22,180.2,3.07]
[1753053042589,3.47671506,180.26,180.18,3.07]
[1753053042799,3.16,180.17,180.14,3.07]
[1753053042993,3.16,180.19,180.1,3.07]
[1753053043195,3.47671506,180.16,180.1,3.07]
[1753053043390,6.63671506,180.16,180.1,3.07]
[1753053043591,3.47671506,180.16,180.1,3.07]
[1753053043793,5.5485,180.14,180.07,3.07]
[1753053043997,3.16,180.15,180.07,3.07]
[1753053044392,8.708,180.15,180.1,5.5492]
[1753053044595,3.16,180.15,180.1,5.5492]
[1753053044898,3.16,180.15,180.13,3.07]
[1753053045894,5.5484,180.14,180.13,3.07]
[1753053046501,8.7082,180.15,180.13,3.07]
[1753053046692,3.16,180.15,180.13,3.07]
[1753053047798,5.5482,180.14,180.13,3.07]
[1753053048301,3.47671506,180.16,180.11,3.07]
[1753053048498,3.16,180.15,180.08,3.07]
[1753053049203,5.5494,180.11,180.08,3.07]
[1753053049399,5.5494,180.11,180.07,5.5504]
[1753053049599,5.5494,180.11,180.1,3.07]
[1753053050905,5.549,180.12,180.1,3.07]
[1753053051306,3.16,180.13,180.1,3.07]
[1753053052502,5.55,180.09,180.07,3.07]
[1753053052705,3.47671506,180.1,180.01,373.1]
[1753053053001,3.16,180.06,179.98,3.07]
[1753053053198,3.16,180.02,179.98,3.07]
[1753053053402,3.16,180.01,179.98,3.07]
[1753053053602,3.16,180.01,179.99,3.07]
[1753053053803,3.16,180.03,179.99,3.07]
[1753053054004,3.16,180.12,179.99,3.07]
[1753053054205,5.5503,180.08,180.06,3.07]
[1753053054402,3.16,180.08,180.04,3.07]
[1753053054596,3.47671506,180.07,179.99,3.07]
[1753053054797,3.47671506,180.04,179.99,3.07]
[1753053054999,3.47671506,180.04,179.92,3.47671506]
[1753053055206,3.47671506,180.04,179.91,377.69218564]
[1753053055207,5.5518,180.03,179.99,5.5528]
[1753053055604,3.16,180.04,180.01,3.07]
[1753053055910,5.5527,180.0,179.98,3.07]
[1753053056108,3.16,180.02,179.99,3.07]
[1753053056312,3.16,180.02,179.92,3.47671506]
[1753053056499,3.16,180.02,180.0,3.07]
[1753053056705,3.16,180.03,180.0,3.07]
[1753053057202,11.0978,180.12,179.92,3.47671506]
[1753053057405,3.16,180.05,179.96,3.07]
[1753053057906,3.16,180.02,179.96,3.07]
[1753053058303,3.47671506,180.03,179.97,3.1]
[1753053058304,5.553,179.99,179.97,3.1]
[1753053058604,3.47671506,180.03,179.98,3.1]
[1753053058909,3.24,180.05,179.99,3.1]
[1753053059504,3.24,180.05,179.96,3.1]
[1753053059705,3.47671506,180.03,179.96,3.1]
[1753053059904,3.24,180.02,179.96,3.1]
[1753053060100,5.5527,180.0,179.96,5.5535]
[1753053060409,3.24,180.12,180.0,3.1]
[1753053060605,376.53671506,180.17,180.08,3.1]
[1753053060804,3.24,180.15,180.08,3.1]
[1753053061008,6.71671506,180.17,180.09,3.47671506]
[1753053061203,3.24,180.17,180.11,3.1]
[1753053061406,3.24,180.2,180.11,3.1]
[1753053061611,5.5477,180.16,180.13,5.5484]
[1753053061912,3.24,180.2,180.14,3.1]
[1753053062304,5.5475,180.17,180.15,3.1]
[1753053062507,5.5475,180.17,180.16,3.1]
[1753053062710,5.5477,180.16,180.13,3.1]
[1753053062910,5.5477,180.16,180.14,3.1]
[1753053063305,5.5477,180.16,180.12,5.5488]
[1753053063501,5.5474,180.17,180.15,3.1]
[1753053063710,3.24,180.18,180.1,3.1]
[1753053064007,3.24,180.15,180.1,3.1]
[1753053064211,3.24,180.15,180.07,3.1]
[1753053064904,5.5486,180.13,180.09,5.5495]
[1753053065105,3.24,180.15,180.07,3.1]
[1753053065312,5.5482,180.14,180.07,3.1]
[1753053065609,3.24,180.17,180.07,3.1]
[1753053065814,5.5489,180.12,180.06,3.47671506]
[1753053066111,3.24,180.14,180.07,3.1]
[1753053066315,5.5494,180.11,180.07,8.6503]
[1753053066508,3.24,180.14,180.08,3.1]
[1753053067105,11.0933,180.2,180.06,3.1]
[1753053067309,3.24,180.15,180.08,3.1]
[1753053067507,5.5495,180.1,180.07,3.47671506]
[1753053067708,5.5495,180.1,180.09,3.1]
[1753053068115,3.24,180.13,180.1,3.1]
[1753053068415,3.24,180.15,180.08,3.1]
[1753053068615,3.24,180.15,180.09,3.1]
[1753053068815,3.24,180.15,180.07,3.47671506]
[1753053068816,3.24,180.14,180.07,3.1]
[1753053069511,6.71671506,180.17,180.07,3.1]
[1753053069810,3.24,180.16,180.07,3.1]
[1753053070010,3.24,180.16,180.1,3.1]
[1753053070413,5.5488,180.13,180.1,3.1]
[1753053070608,5.5488,180.13,180.11,3.1]
[1753053070809,5.5488,180.13,180.12,3.1]
[1753053071709,3.24,180.15,180.06,3.1]
[1753053071915,3.24,180.12,180.06,3.1]
[1753053072511,3.24,180.15,180.06,6.57671506]
[1753053072716,3.24,180.15,180.07,3.1]
[1753053073120,5.5486,180.13,180.06,3.47671506]
[1753053073318,3.24,180.15,180.07,3.1]
[1753053073710,5.5489,180.12,180.09,5.5497]
[1753053074012,5.5489,180.12,180.11,3.1]
[1753053074418,6.71671506,180.17,180.13,3.1]
[1753053074614,3.47671506,180.17,180.13,3.1]
[1753053074817,3.24,180.15,180.13,3.1]
[1753053075018,5.5482,180.14,180.13,3.1]
[1753053075924,3.24,180.2,180.11,3.1]
[1753053076522,3.24,180.17,180.11,3.1]
[1753053077024,5.549,180.12,180.05,3.1]
[1753053077224,3.24,180.14,180.05,3.1]
[1753053078023,5.5494,180.11,180.08,5.5499]
[1753053078318,3.47671506,180.15,180.1,3.1]
[1753053078523,3.24,180.13,180.1,3.1]
[1753053079030,5.5492,180.11,180.1,3.1]
[1753053079227,3.24,180.13,180.08,5.5501]
[1753053079228,3.24,180.13,180.11,3.1]
[1753053079430,3.24,180.15,180.12,3.1]
[1753053079731,5.5486,180.13,180.12,3.1]
[1753053080627,5.5491,180.12,180.1,3.1]
[1753053080828,3.24,180.12,180.1,3.1]
[1753053081224,3.24,180.14,180.07,3.1]
[1753053081627,5.5496,180.1,180.07,3.1]
[1753053081826,5.5496,180.1,180.06,5.5506]
[1753053082023,5.5496,180.1,180.08,3.1]
[1753053082220,5.5498,180.09,180.08,3.1]
[1753053083022,3.24,180.15,180.08,3.1]
[1753053083429,3.24,180.15,180.07,3.47671506]
[1753053083430,3.24,180.13,180.04,3.47671506]
[1753053083629,3.24,180.1,180.01,3.47671506]
[1753053083829,3.24,180.1,180.02,3.1]
[1753053084125,3.24,180.05,180.02,3.1]
[1753053084328,3.24,180.05,180.03,3.1]
[1753053084625,3.47671506,180.08,180.03,3.1]
[1753053084828,6.71671506,180.12,180.04,3.1]
[1753053085124,5.55,180.09,180.05,5.5509]
[1753053085527,5.55,180.09,180.08,3.1]
[1753053086025,5.5496,180.1,180.09,3.1]
[1753053088237,3.24,180.13,180.06,3.47671506]
[1753053088437,3.47671506,180.17,180.07,3.05]
[1753053088438,2.97,180.16,180.07,3.05]
[1753053088638,5.5488,180.13,180.07,3.05]
[1753053088937,5.5488,180.13,180.1,3.05]
[1753053089133,2.97,180.16,180.1,3.05]
[1753053089338,5.5492,180.11,180.1,3.05]
[1753053091133,5.5499,180.09,180.08,3.05]
[1753053091440,2.97,180.12,180.07,5.5503]
[1753053091630,2.97,180.12,180.09,3.05]
[1753053091830,3.47671506,180.14,180.01,109.75749204]
[1753053092034,2.97,180.13,180.05,3.05]
[1753053092349,2.97,180.11,180.05,3.05]
[1753053092640,3.66990961,180.1,180.05,3.05]
[1753053092836,2.97,180.08,180.05,3.05]
[1753053093236,2.97,180.07,180.05,3.05]
[1753053093436,2.97,180.13,180.04,3.47671506]
[1753053093641,3.66944215,180.12,180.07,3.47671506]
[1753053093947,2.97,180.16,180.08,3.05]
[1753053094137,3.66899678,180.15,180.08,3.05]
[1753053094333,5.5491,180.12,180.07,3.47671506]
[1753053094540,2.97,180.16,180.1,3.47671506]
[1753053094739,5.5487,180.13,180.11,3.05]
[1753053095338,5.5484,180.14,180.11,5.5491]
[1753053095544,5.5484,180.14,180.13,3.05]
[1753053096440,5.5492,180.11,180.1,3.05]
[1753053096946,5.549,180.12,180.08,3.05]
[1753053097245,2.97,180.14,180.08,3.05]
[1753053097644,2.97,180.16,180.08,3.05]
[1753053097844,2.97,180.16,180.11,3.05]
[1753053098348,3.47671506,180.21,180.13,3.05]
[1753053098349,2.97,180.2,180.13,3.05]
[1753053099244,5.5482,180.14,180.13,3.05]
[1753053099445,2.97,180.17,180.11,3.05]
[1753053099635,2.97,180.17,180.12,5.5488]
[1753053099842,5.5484,180.14,180.13,3.05]
[1753053101450,5.5491,180.12,180.07,3.05]
[1753053101648,2.97,180.17,180.08,3.47671506]
[1753053101849,2.97,180.17,180.09,3.05]
[1753053102553,5.5494,180.11,180.08,9.02681506]
[1753053102849,5.5494,180.11,180.1,3.05]
[1753053105260,5.5486,180.13,180.1,3.05]
[1753053105951,5.5486,180.13,180.11,3.05]
[1753053106151,5.5489,180.12,180.11,3.05]
[1753053106655,2.97,180.1,180.08,3.05]
[1753053107053,2.97,180.09,180.08,3.05]
[1753053107254,2.97,180.08,180.06,3.05]
[1753053107556,2.97,180.11,180.03,3.05]
[1753053107755,2.97,180.08,180.03,3.05]
[1753053107954,2.97,180.08,180.0,3.05]
[1753053108456,5.5517,180.03,180.0,5.5524]
[1753053108852,5.5517,180.03,180.02,3.05]
[1753053109057,2.97,180.06,180.02,3.05]
[1753053109058,5.5514,180.04,180.02,3.05]
[1753053109248,2.97,180.08,180.02,3.05]
[1753053109453,5.5509,180.06,180.03,5.5516]
[1753053109653,3.47671506,180.11,180.04,3.05]
[1753053109851,2.97,180.13,180.05,3.05]
[1753053110154,2.97,180.11,180.06,3.05]
[1753053110357,2.97,180.09,180.06,3.05]
[1753053110554,3.47671506,180.15,180.08,3.05]
[1753053110752,2.97,180.14,180.05,3.05]
[1753053111354,5.5503,180.08,180.05,5.551]
[1753053111556,2.97,180.14,180.06,3.05]
[1753053111852,5.55,180.09,180.06,8.6006]
[1753053112060,5.55,180.09,180.08,3.05]
[1753053112656,2.97,180.09,180.06,3.05]
[1753053112848,2.97,180.09,180.02,3.47671506]
[1753053113052,2.97,180.09,180.07,3.05]
[1753053113357,5.5503,180.08,180.07,3.05]
[1753053113557,3.85102458,180.08,180.02,3.47671506]
[1753053113859,3.85102458,180.07,180.03,3.05]
[1753053114059,3.85102458,180.06,180.03,3.05]
[1753053114262,5.5506,180.07,180.04,5.5511]
[1753053114457,3.85080966,180.06,180.05,3.05]
[1753053114850,9.40150966,180.06,180.05,3.05]
[1753053115560,5.5505,180.07,180.05,3.05]
[1753053115760,5.5505,180.07,180.06,3.05]
[1753053115949,2.97,180.07,180.04,3.05]
[1753053116150,2.97,180.07,180.0,4.63749204]
[1753053116151,2.97,180.09,179.99,4.63749204]
[1753053116355,2.97,180.09,179.98,8.1142071]
[1753053116861,2.97,180.07,180.03,3.05]
[1753053117062,2.97,180.06,180.04,3.05]
[1753053117360,5.551,180.05,180.04,3.05]
[1753053119762,11.0962,180.15,180.04,3.05]
[1753053119763,3.23,180.11,180.04,3.1]
[1753053120755,8.781,180.05,180.0,8.1142071]
[1753053121060,3.23,180.04,179.95,4.63749204]
[1753053121361,6.19555499,180.12,179.93,9.65296258]
[1753053121362,3.47671506,179.99,179.93,3.1]
[1753053121567,3.47671506,179.96,179.9,3.1]
[1753053121762,3.23,179.92,179.87,3.1]
[1753053121959,3.23,179.92,179.85,3.1]
[1753053122156,5.5568,179.87,179.85,3.1]
[1753053122356,3.23,179.86,179.83,3.1]
[1753053122562,3.23,179.86,179.84,3.1]
[1753053122763,3.47671506,179.9,179.82,104.96]
[1753053122764,3.23,179.85,179.82,104.96]
[1753053122966,3.23,179.84,179.82,3.1]
[1753053123562,3.23,179.86,179.83,3.1]
[1753053123761,3.23,179.85,179.79,3.1]
[1753053124365,3.23,179.82,179.79,3.1]
[1753053124663,5.558,179.83,179.77,104.94]
[1753053124857,8.788,179.83,179.8,3.1]
[1753053125058,3.23,179.83,179.78,3.1]
[1753053125455,5.5562,179.89,179.84,3.1]
[1753053125656,3.23,179.89,179.79,3.1]
[1753053125859,3.47671506,179.89,179.79,3.1]
[1753053126060,8.7865,179.88,179.82,5.558]
[1753053126265,3.23,179.87,179.84,3.1]
[1753053127166,3.23,179.9,179.87,3.1]
[1753053127369,3.23,179.92,179.84,3.1]
[1753053127859,3.47671506,179.9,179.84,3.1]
[1753053128065,3.23,179.87,179.84,3.1]
[1753053128266,3.23,179.89,179.82,3.1]
[1753053128564,3.23,179.86,179.79,3.1]
[1753053129164,5.5577,179.84,179.79,3.1]
[1753053129472,6.70671506,179.86,179.79,3.1]
[1753053129771,12.26361506,179.86,179.81,5.5584]
[1753053130064,3.47671506,179.86,179.81,5.5584]
[1753053130273,3.23,179.85,179.82,3.1]
[1753053130464,3.23,179.87,179.8,3.1]
[1753053130769,3.23,179.9,179.83,3.1]
[1753053130966,8.7856,179.9,179.83,3.1]
[1753053131666,8.7856,179.9,179.86,3.1]
[1753053131866,3.23,179.9,179.82,3.47671506]
[1753053132067,3.47671506,179.93,179.89,3.1]
[1753053132266,3.23,179.91,179.89,3.1]
[1753053132664,3.23,179.93,179.9,3.1]
[1753053132865,3.23,179.93,179.86,3.47671506]
[1753053133172,8.7841,179.95,179.92,3.1]
[1753053133465,3.47671506,179.99,179.93,3.1]
[1753053133665,3.47671506,179.99,179.9,5.5556]
[1753053133867,3.23,179.97,179.91,3.1]
[1753053134071,376.63671506,180.07,179.86,3.1]
[1753053134072,3.23,179.95,179.86,3.1]
[1753053134269,3.23,179.92,179.88,8.656]
[1753053134465,3.23,179.92,179.89,3.1]
[1753053134666,3.23,179.92,179.89,8.6558]
[1753053134972,3.23,179.92,179.9,3.1]
[1753053135173,3.23,179.92,179.9,8.6556]
[1753053135369,8.7845,179.94,179.91,3.1]
[1753053135667,5.5536,179.97,179.91,3.1]
[1753053135874,373.16,180.07,179.95,3.1]
[1753053135875,3.23,180.06,179.95,3.1]
[1753053136068,10.39078123,180.05,179.95,3.1]
[1753053136273,5.5523,180.01,179.97,5.5534]
[1753053136474,5.5523,180.01,179.98,3.1]
[1753053136667,8.7823,180.01,179.99,3.1]
[1753053136864,8.7826,180.0,179.97,5.5534]
[1753053137068,3.47671506,179.99,179.89,3.47671506]
[1753053137269,3.23,179.98,179.9,3.1]
[1753053137672,8.7834,179.98,179.94,5.5544]
[1753053137873,8.7834,179.98,179.96,3.1]
[1753053138375,5.5535,179.97,179.96,3.1]
[1753053138569,3.23,179.96,179.94,3.1]
[1753053138971,8.7837,179.97,179.94,3.1]
[1753053139171,3.23,180.0,179.92,3.1]
[1753053139674,3.23,179.94,179.92,3.1]
[1753053140169,8.7844,179.94,179.92,3.1]
[1753053140367,3.23,179.96,179.87,3.1]
[1753053140670,373.16,180.07,179.86,104.98]
[1753053140671,3.23,179.99,179.89,3.1]
[1753053140870,5.5536,179.97,179.93,5.5545]
[1753053141070,5.5536,179.97,179.95,3.1]
[1753053141469,5.5536,179.97,179.93,5.5545]
[1753053141671,3.23,179.99,179.97,3.1]
[1753053141867,3.23,180.0,179.98,3.1]
[1753053142877,3.23,180.03,179.92,3.1]
[1753053143274,5.553,179.99,179.95,5.5539]
[1753053143475,3.23,180.01,179.96,3.1]
[1753053143684,3.23,180.03,179.92,3.1]
[1753053143975,3.23,180.0,179.89,3.1]
[1753053144278,5.5544,179.94,179.91,5.5553]
[1753053144574,5.5544,179.94,179.93,3.1]
[1753053145183,5.5549,179.93,179.91,3.1]
[1753053145477,8.7849,179.93,179.91,3.1]
[1753053145672,8.7847,179.93,179.91,3.1]
[1753053146080,3.23,179.93,179.91,3.1]
[1753053147877,8.7848,179.93,179.91,3.1]
[1753053148069,3.23,179.93,179.91,3.1]
[1753053148978,5.555,179.92,179.91,3.1]
[1753053149370,8.7848,179.93,179.91,3.1]
[1753053149575,5.5548,179.93,179.92,3.05]
[1753053149875,3.07,179.97,179.85,5.74047928]
[1753053150172,3.07,179.99,179.89,3.05]
[1753053150477,3.07,179.99,179.84,104.92]
[1753053150478,3.07,180.02,179.97,3.05]
[1753053150871,3.07,180.02,179.98,3.05]
[1753053151071,5.5528,180.0,179.99,3.05]
[1753053151775,3.07,179.99,179.95,3.05]
[1753053151974,3.07,179.98,179.95,3.05]
[1753053152178,5.5533,179.98,179.96,3.05]
[1753053152382,3.07,179.98,179.96,3.05]
[1753053152577,5.74047928,180.02,179.96,3.05]
[1753053152773,3.07,180.0,179.96,3.05]
[1753053152976,3.07,180.02,179.91,3.05]
[1753053153177,5.5529,179.99,179.96,5.5537]
[1753053153378,5.5529,179.99,179.97,3.05]
[1753053154078,5.5532,179.98,179.97,3.05]
[1753053154784,0.96721744,180.03,179.97,3.05]
[1753053154785,5.553,179.99,179.97,3.05]
[1753053154978,3.07,180.02,179.9,5.74047928]
[1753053155284,3.07,180.0,179.95,3.05]
[1753053155478,3.76044373,179.99,179.95,3.05]
[1753053155676,3.07,180.02,179.94,3.05]
[1753053155881,3.07,180.08,179.97,3.05]
[1753053156086,3.07,180.08,180.02,3.05]
[1753053156087,3.76099357,180.07,180.02,3.05]
[1753053156287,3.07,180.08,180.02,3.05]
[1753053156586,3.76186753,180.07,180.03,3.05]
[1753053156786,3.07,180.09,180.03,3.05]
[1753053157085,3.07,180.07,180.0,3.05]
[1753053157286,3.76170705,180.06,180.0,3.05]
[1753053157481,6.83170705,180.05,180.0,3.05]
[1753053157786,6.83170705,180.05,179.99,5.5527]
[1753053157787,3.07,180.04,180.01,3.05]
[1753053158284,5.5519,180.03,180.01,3.05]
[1753053158482,3.07,180.08,179.99,3.05]
[1753053158786,5.5525,180.01,179.99,3.05]
[1753053158991,5.5525,180.01,180.0,3.05]
[1753053159483,5.5519,180.02,179.96,3.05]
[1753053160377,5.5524,180.01,179.95,3.48509976]
[1753053160582,3.48509976,180.06,179.99,3.05]
[1753053160583,3.07,180.05,179.99,3.05]
[1753053160888,3.07,180.02,179.99,3.05]
[1753053161288,5.5522,180.01,179.99,3.05]
[1753053161482,3.07,180.02,179.99,3.05]
[1753053161687,3.07,180.05,179.99,3.05]
[1753053161986,3.07,180.02,179.99,3.05]
[1753053162188,3.07,180.02,180.0,3.05]
[1753053163183,5.5527,180.0,179.97,5.5533]
[1753053163388,5.5527,180.0,179.99,3.05]
[1753053163987,3.07,180.02,179.94,3.05]
[1753053164195,3.07,179.99,179.89,3.05]
[1753053164393,3.48509976,180.0,179.92,5.5547]
[1753053164394,6.84102984,179.98,179.92,5.5547]
[1753053164586,6.55509976,180.0,179.93,3.05]
[1753053164788,0.9671368,180.01,179.93,3.05]
[1753053165081,3.07,180.02,179.95,3.05]
[1753053165285,5.5526,180.0,179.98,3.05]
[1753053165486,3.07,180.04,179.98,3.05]
[1753053165991,3.07,180.04,179.99,5.5527]
[1753053166187,6.84164352,180.03,180.01,3.05]
[1753053166387,3.07,180.03,180.01,3.05]
[1753053166598,5.5521,180.02,180.01,3.05]
[1753053166792,3.07,180.01,179.94,3.05]
[1753053167000,3.48509976,179.99,179.9,3.48509976]
[1753053167196,5.5538,179.96,179.95,3.05]
[1753053167501,3.07,179.98,179.96,3.05]
[1753053167892,5.5535,179.97,179.96,3.05]
[1753053168098,3.07,179.97,179.89,3.05]
[1753053168392,5.5538,179.96,179.93,5.5544]
[1753053168592,5.5538,179.96,179.94,3.05]
[1753053168802,5.5538,179.96,179.95,3.05]
[1753053171506,5.5537,179.97,179.95,3.05]
[1753053171902,3.48509976,179.99,179.89,3.05]
[1753053172300,5.554,179.96,179.93,3.05]
[1753053172598,5.554,179.96,179.95,3.05]
[1753053172799,3.07,179.98,179.96,3.05]
[1753053172800,5.5536,179.97,179.96,3.05]
[1753053176614,3.07,179.97,179.94,3.05]
[1753053176907,3.07,179.96,179.94,3.05]
[1753053177298,3.07,179.96,179.89,4.61245088]
[1753053177603,3.07,179.96,179.95,3.05]
[1753053178309,5.5539,179.96,179.95,3.05]